[Event "Chhattisgarh Masters GM 2022"]
[Site "Chhattisgarh"]
[Date "2022.09.19"]
[Round "1.5"]
[White "Shyam, Sundar M."]
[Black "Pandey Srishti"]
[Result "1/2-1/2"]
[ECO "D02"]
[WhiteElo "2526"]
[BlackElo "2173"]
[Annotator "TA"]
[PlyCount "84"]
[EventDate "2022.09.19"]
[EventCountry "IND"]
[SourceTitle "playchess.com"]
[Source "ChessBase"]
[SourceQuality "1"]
[TimeControl "5400+30"]

{[%evp 9,84,30,33,29,23,19,19,12,39,20,13,9,16,-10,28,26,23,26,25,19,13,11,39,13,25,20,33,34,39,28,46,43,54,34,37,39,33,47,32,8,0,-14,58,52,64,0,0,0,0,0,0,0,0,-14,0,0,0,0,0,0,0,0,11,10,102,-4,-4,-72,-68,-71,-38,-183,-173,-162,-162,-256,-9]} 1. Nf3 {[%emt 0:00:11]} d5 {[%emt 0:00:06]} 2. g3 {[%emt 0:00:11]} Nd7 {[%emt 0:00:42]} 3. d4 {[%emt 0:00:59]} Ngf6 {[%emt 0:00:05]} 4. Bg2 {[%emt 0:00:37]} Nb6 {[%emt 0:00:06]} 5. O-O {[%emt 0:05:11]} Bf5 {[%emt 0:00:03]} 6. a4 {[%emt 0:00:09] D02: 1 d4 d5 2 Nf3 sidelines, including 2...Nf6 3 g3 and 2...Nf6 3 Bf4.} a5 {[%emt 0:00:13] [#]} 7. Nh4 $146 {[%emt 0:00:57]} ({Predecessor:} 7. Ne5 c6 8. b3 e6 9. c4 Bb4 10. c5 Nbd7 11. Nd3 Bxd3 12. Qxd3 e5 13. e3 {1-0 (57) Jones,G (2671)-Osmak,I (2432) Chess.com INT 2022}) 7... Bg4 {[%emt 0:01:50]} 8. h3 {[%emt 0:00:43] The position is equal.} Bh5 {[%emt 0:00:15]} 9. Qd3 {[%emt 0:06:54]} (9. g4 $5 {[%cal Rg4h5]} Bg6 10. Nxg6 hxg6 11. Bg5 $11) 9... e6 {[%emt 0:01:35]} 10. Nd2 {[%emt 0:03:30]} Be7 {[%emt 0:01:51]} 11. e4 {[%emt 0:16:40]} dxe4 {[%emt 0:01:06]} 12. Nxe4 {[%emt 0:00:11]} Nfd5 {[%emt 0:06:32]} 13. Nf3 {[%emt 0:04:47]} O-O {[%emt 0:00:19]} 14. c3 {[%emt 0:00:02][%cal Bc2c3,Bc3c4][%mdl 32]} Nd7 {[%emt 0:04:22]} 15. Qb5 {[%emt 0:01:55]} Ra7 {[%emt 0:09:17]} 16. Re1 {[%emt 0:04:26]} c6 {[%emt 0:02:33]} 17. Qb3 {[%emt 0:05:16]} Qb8 {[%emt 0:01:21]} 18. c4 {[%emt 0:04:50]} Nb4 {[%emt 0:01:57]} 19. Bf4 {[%emt 0:00:03]} Qd8 {[%emt 0:00:17]} 20. Rad1 {[%emt 0:00:07]} b5 {[%emt 0:02:42]} 21. cxb5 {[%emt 0:08:37]} cxb5 {[%emt 0:01:51]} 22. axb5 {[%emt 0:02:11][%cal Oe4c5]} a4 $1 {[%emt 0:01:13]} 23. Qc4 {[%emt 0:00:07]} Nb6 {[%emt 0:01:16]} 24. Qe2 {[%emt 0:04:11]} (24. Qc1 $5 {[%cal Rg3g4]}) 24... N6d5 {[%emt 0:00:38]} 25. Be3 a3 {[%emt 0:08:30]} (25... Bxf3 $11 26. Bxf3 Qb8) 26. bxa3 $14 {[%emt 0:12:19]} Rxa3 {[%emt 0:00:02]} 27. Bc1 {[%emt 0:09:17]} (27. Ra1 $14 Rxa1 28. Rxa1) 27... Ra2 $11 {[%emt 0:02:00]} 28. Rd2 {[%emt 0:00:15]} Rxd2 {[%emt 0:04:35]} 29. Qxd2 {[%emt 0:01:57]} Qb6 {[%emt 0:00:39]} 30. g4 {[%emt 0:07:05]} Bg6 {[%emt 0:00:06]} 31. Bf1 {[%emt 0:00:18]} Rc8 {[%emt 0:04:32] Prevents Nc3. aiming for ...Rc2.} 32. Nc5 {[%emt 0:00:05]} Nc2 $1 {[%emt 0:01:13]} 33. Rd1 {[%emt 0:00:01]} Nxd4 $1 {[%emt 0:01:00]} 34. Nxd4 {[%emt 0:00:01] Threatens to win with Na6.} Bxc5 {[%emt 0:00:02]} 35. Nc6 {[%emt 0:00:14] Inhibits Bb4.} Qc7 {[%emt 0:13:40]} 36. Bg2 {[%emt 0:00:06]} h5 {[%emt 0:03:20]} (36... Qg3 $1 $11 37. Ne7+ Kh8 38. Nxd5 (38. Nxc8 Be4 39. Kf1 Qxg2+ 40. Ke1 Qg1+ 41. Ke2 Qxf2#) 38... exd5) 37. gxh5 {[%emt 0:04:00]} ({But not} 37. Bxd5 $2 Qg3+ 38. Kh1 Qxh3+ 39. Kg1 exd5 40. Qxd5 Qxg4+ 41. Kf1 Be4 42. Qxf7+ Kh8 $19) (37. Bb2 $1 $16 Qf4 38. Qxf4 (38. Bxd5 $2 Qg3+ 39. Kh1 Qxh3+ 40. Kg1 Qg3+ 41. Kh1 Qh4+ 42. Kg1 Qg3+ 43. Kh1 Qh4+ 44. Kg1 exd5 $19) 38... Nxf4 39. Be5 Nxg2 40. Rc1 (40. Kxg2 Ra8 $11)) 37... Bxh5 {[%emt 0:00:37]} 38. Re1 {[%emt 0:00:01]} (38. Rf1 $1 $11) 38... Qg3 $1 $40 {[%emt 0:03:21][%mdl 128] ( -> ...Bf3). White needs to defend precisely.} 39. Kf1 {[%emt 0:00:02][%csl LRd5,LRg3]} Qb3 {[%emt 0:00:07]} 40. Kg1 {[%emt 0:00:02]} (40. Qb2 $1 $15 Qd3+ 41. Kg1) 40... Qxb5 $19 {[%emt 0:01:24]} 41. Bxd5 {[%emt 0:00:35]} exd5 {[%emt 0:00:12]} 42. Qxd5 {[%emt 0:01:04]} (42. Qg5 $142) 42... Qxc6 $2 {[%emt 0:12:26] Weighted Error Value: White=0.21 (precise) /Black=0.10 (very precise)} ({Inferior is} 42... Bxf2+ 43. Kxf2 Qxc6 44. Qxh5 $11) ({Better is} 42... Rxc6 $19 43. Re8+ Kh7 44. Qxh5+ {[#]} Rh6 $1 {[%mdl 512]} 45. Qxf7 Rg6+ 46. Kh2 Bd6+ 47. f4 Bxf4+ $1 {[%mdl 512]} 48. Qxf4 (48. Bxf4 {leads to mate.} Qb2+) 48... Qxe8 49. Qh4+ Kg8 50. Qc4+ Re6) 1/2-1/2

[Event "Chhattisgarh Masters GM 2022"]
[Site "Chhattisgarh"]
[Date "2022.09.19"]
[Round "1.5"]
[White "Tahbaz, Arash"]
[Black "Manigandan, S S"]
[Result "1-0"]
[ECO "D02"]
[WhiteElo "2437"]
[BlackElo "2131"]
[Annotator "TA"]
[PlyCount "101"]
[EventDate "2022.09.19"]
[EventCountry "IND"]
[SourceTitle "playchess.com"]
[Source "ChessBase"]
[SourceQuality "1"]
[TimeControl "5400+30"]

{[%evp 9,101,16,26,12,32,15,65,64,65,43,61,56,54,42,50,45,50,43,56,54,51,37,53,44,47,45,117,116,106,106,108,117,113,98,136,47,43,43,43,37,45,0,0,0,61,57,61,62,68,68,113,113,114,114,154,154,243,243,229,222,315,315,315,311,304,294,256,255,315,315,344,331,413,399,832,439,5072,5072,5065,5065,5008,5008,5008,4757,2182,2121,1870,1833,1639,1473,1433,1433,818,754]} 1. Nf3 {[%emt 0:00:05]} Nf6 {[%emt 0:00:08]} 2. g3 {[%emt 0:00:04]} c5 {[%emt 0:02:31]} 3. Bg2 {[%emt 0:00:05]} d5 {[%emt 0:00:36]} 4. O-O {[%emt 0:00:07]} Nc6 {[%emt 0:00:10]} 5. d4 {[%emt 0:00:03]} Bg4 {[%emt 0:03:51] CPLX 2.0 10 (c5xd4) (=10)} 6. c4 {[%emt 0:05:05] BESTDEEP. D02: 1 d4 d5 2 Nf3 sidelines, including 2...Nf6 3 g3 and 2...Nf6 3 Bf4.} Bxf3 {[%emt 0:07:38] CPLX 2.4 20 (c5xd4) (=15)} 7. Bxf3 {[%emt 0:00:08] RECAPT} Nxd4 {[%emt 0:00:38] CPLX 2.3 50 (c5xd4) (=27)} (7... cxd4 $11 8. Qb3 e6) 8. Bg2 $14 {[%emt 0:00:18] BESTDEEP. White is slightly better.} e6 {[%emt 0:00:23] CPLX 2.7} 9. Nc3 {[%emt 0:02:13] CPLX 2.7 22 (c4xd5) (=6)} Be7 {[%emt 0:06:30] CPLX 2.7 18 (d5xc4) (=20)} 10. e3 {[%emt 0:16:43] CPLX 2.8 5 (c4xd5) (=5)} Nc6 {[%emt 0:01:35] CPLX 3.0} 11. cxd5 {[%emt 0:00:21] EASY} exd5 {[%emt 0:00:16] RECAPT} 12. Nxd5 {[%emt 0:00:06] RECAPT} Nxd5 {[%emt 0:01:34] RECAPT} 13. Bxd5 {[%emt 0:02:21] RECAPT} O-O {[%emt 0:14:05] CPLX 2.2 13 (Ra8-c8) (=12)} 14. Bxc6 {[%emt 0:10:09] BESTDEEP} bxc6 {[%emt 0:00:07] RECAPT} 15. Qc2 {[%emt 0:00:14] [#] BESTDEEP} Qd5 $146 {[%emt 0:00:30] CPLX 2.1} ({Predecessor:} 15... Qb6 16. Bd2 Rfd8 17. Bc3 Rd5 18. e4 Rd7 19. Qe2 Rad8 20. Rad1 Bf8 21. Rxd7 Rxd7 {1-0 (56) Plichta,K (2227)-Dudys,J (2154) Poronin 2013}) 16. b3 {[%emt 0:04:10] BESTDEEP} Rfd8 {[%emt 0:04:36] CPLX 3.0 3 (Rf8-b8) (=10)} 17. Ba3 {[%emt 0:00:39] CPLX 3.1 2 (e3-e4) (=2)} Qf3 {[%emt 0:21:32] CPLX 3.2 72 (h7-h5) (=14)} ({Better is} 17... h5 $14) 18. Bxc5 $16 {[%emt 0:04:42] CPLX 3.6} Bxc5 {[%emt 0:01:50] RECAPT} 19. Qxc5 {[%emt 0:00:13] RECAPT} Rd2 {[%emt 0:00:58] CPLX 3.1 2 (h7-h5) (=13)} 20. Qa5 {[%emt 0:01:57] CPLX 3.8 0 (a2-a4) (=2)} Rad8 {[%emt 0:08:35] CPLX 3.9} 21. Qxa7 {[%emt 0:03:12] CPLX 3.9} h5 {[%emt 0:00:07][%cal Oh5h4] CPLX 3.7} 22. Qa4 {[%emt 0:01:11] CPLX 3.7 89 (h2-h4) (=7)} (22. h4 $16) 22... g5 $1 $14 {[%emt 0:04:54][%cal Oh5h4] CPLX 3.7=>BLUNDERREACT} 23. Rac1 {[%emt 0:27:41] EASY} R8d6 $1 {[%emt 0:01:42][%cal Oh5h4] aiming for ...h4! CPLX 3.8} 24. Qa5 {[%emt 0:03:05] Black must now prevent e4. CPLX 4.0} R6d5 {[%emt 0:08:42] CPLX 5.0 8 (Rd2-d5) (=10)} 25. Qa8+ {[%emt 0:02:13] CPLX 4.5 45 (Qa5-c7) (=8)} Kh7 $1 {[%emt 0:01:21] DEEPSTRONG} 26. Qc8 {[%emt 0:02:15] CPLX 4.4 0 (e3-e4) (=8)} h4 {[%emt 0:05:08] RELBLUND 61 (Rd2xa2) (=12)} (26... Rxa2 $11 27. b4 (27. Qxc6 h4 $11) 27... Rb2) 27. Qh3 $1 {[%emt 0:00:31] DEEPSTRONG} (27. Qxc6 h3) 27... Rxa2 {[%emt 0:01:09] CPLX 4.2} 28. Qg2 {[%emt 0:00:51] EASY} (28. Rxc6 $2 Rd1 29. Qg2 (29. Rxd1 Qxf2+ 30. Kh1 Qf3+ 31. Kg1 Qxe3+ 32. Kh1 Qf3+ 33. Kg1 Qxd1+ 34. Qf1 Qd4+ 35. Kh1 Qe4+ 36. Kg1 Qxc6 37. Qxf7+ Kh6 38. Qf8+ Kg6 39. Qg8+ Kh5 40. g4+ Kxg4 41. Qc4+ Qxc4 42. bxc4 h3 43. Kf1 Kf3 44. Ke1 Rxh2 45. c5 Re2+ 46. Kd1 h2 47. c6 h1=Q#) 29... Rxf1+ 30. Qxf1 Qxc6 $19) 28... Qxg2+ {[%emt 0:01:51] EASY} 29. Kxg2 {[%emt 0:00:01][%mdl 4096] Endgame KRR-KRR. LEGAL} Rd3 {[%emt 0:01:26] [#] Black is on the road to losing. CPLX 2.2 45 (h4xg3) (=12)} 30. gxh4 $1 {[%emt 0:00:26] CPLX 2.3} ({But not} 30. Rxc6 $6 Rxe3 31. gxh4 gxh4 $11) 30... gxh4 {[%emt 0:00:35] RECAPT} 31. Kf3 {[%emt 0:00:01] CPLX 2.2} ({Reject} 31. Rxc6 $6 Rxe3 32. Rf6 h3+ 33. Kg1 Rxb3 $11) 31... Rxb3 {[%emt 0:00:30] CPLX 2.2 40 (Rd3-d6) (=13)} 32. Rxc6 {[%emt 0:00:01] CPLX 2.0} Rb5 {[%emt 0:00:29] [#] CPLX 2.0 89 (Rb3-b4) (=15)} (32... Rb4 $16 {might work better.} 33. Rcc1 Ra5) 33. Rf6 $1 $18 {[%emt 0:00:13] BESTDEEP} Kg7 {[%emt 0:00:28] CPLX 2.0} 34. Rf4 {[%emt 0:00:01] EASY} f5 {[%emt 0:00:34] CPLX 2.0 93 (h4-h3) (=17)} (34... h3 $142 35. Rg1+ Kf8) 35. Rxh4 {[%emt 0:00:16] CPLX 2.0} Kf6 {[%emt 0:00:30] CPLX 2.0} 36. Rf4 {[%emt 0:00:45] BESTDEEP} Rbb2 {[%emt 0:00:30] CPLX 2.0} 37. Kg3 {[%emt 0:00:18] CPLX 2.1 10 (h2-h4) (=5)} Rb8 {[%emt 0:00:08] BESTDEEP} 38. Rc1 {[%emt 0:00:07] CPLX 2.0} Ra5 {[%emt 0:00:51] CPLX 2.0 60 (Rb8-g8) (=17)} 39. Rc6+ {[%emt 0:00:02] CPLX 2.0} Ke7 {[%emt 0:00:31] CPLX 2.0 29 (Kf6-g7) (=18)} 40. Rh4 {[%emt 0:00:54] Threatening mate with Rh7+. CPLX 2.0 13 (h2-h4) (=5)} Rg8+ {[%emt 0:00:07] CPLX 2.0 82 (Ke7-f7) (=19)} 41. Kf3 {[%emt 0:00:05] Rh7+ is the strong threat. CPLX 2.0} Rg7 {[%emt 0:00:49] Inhibits Rh7. EVAL 400 (f5-f4) (=30)} (41... f4 42. Rb6 (42. exf4 Ra3+ 43. Ke2 Ra2+ 44. Ke3 Ra3+ 45. Kd4 Rd8+ 46. Ke5 Ra5+ 47. Ke4 Ra4+ 48. Kf3 Ra3+ 49. Kg4 Rg8+ 50. Kf5 Ra5+ 51. Ke4 Ra4+ 52. Ke5 Ra5+ 53. Ke4 Ra4+ 54. Ke3 Ra3+ 55. Ke2 Ra2+ 56. Kf3 Ra3+ 57. Ke4 Ra4+ $18) 42... Kd7 43. Rxf4 Rh5) 42. Rhh6 {[%emt 0:03:24] And now Rc7+ would win. CPLX 2.0 393 (Rc6-c7) (=16). White is clearly winning.} Rf7 {[%emt 0:00:00] BEVAL 400 (Ke7-f7) (=39)} (42... Kf7 $142 43. Rc7+ Kg8) 43. Rc7+ {[%emt 0:00:00] BEVAL} Kf8 {[%emt 0:00:00] BEVAL} 44. Rxf7+ {[%emt 0:00:00] BEVAL} Kxf7 {[%emt 0:00:00] KR-KR. BEVAL} 45. Kf4 {[%emt 0:00:00] BEVAL} Kg7 {[%emt 0:00:00] BEVAL 0 (Ra5-a2) (=36)} 46. Rb6 {[%emt 0:00:00] BEVAL} Ra2 {[%emt 0:00:00] BEVAL} 47. f3 {[%emt 0:00:00] BEVAL} Ra5 {[%emt 0:00:00] BEVAL 0 (Kg7-f8) (=35)} 48. Kg5 {[%emt 0:00:00]} Ra3 {[%emt 0:00:00]} 49. Rb7+ {[%emt 0:00:00]} Kf8 {[%emt 0:00:00]} 50. Kf4 {[%emt 0:00:00]} Rc3 {[%emt 0:00:00]} 51. Rb5 {[%emt 0:00:00] Weighted Error Value: White=0.17 (very precise) /Black=0.21 (precise)} 1-0

[Event "Chhattisgarh Masters GM 2022"]
[Site "Chhattisgarh"]
[Date "2022.09.19"]
[Round "1.6"]
[White "Mohota, Nisha"]
[Black "Aronyak Ghosh"]
[Result "0-1"]
[ECO "B11"]
[WhiteElo "2166"]
[BlackElo "2519"]
[Annotator "TA"]
[PlyCount "100"]
[EventDate "2022.09.19"]
[EventCountry "IND"]
[SourceTitle "playchess.com"]
[Source "ChessBase"]
[SourceQuality "1"]
[TimeControl "5400+30"]

{[%evp 10,100,27,27,31,15,22,25,45,24,35,23,29,35,56,22,30,12,5,8,25,0,0,0,0,-18,-20,-20,-28,-16,-16,-126,-122,-132,-109,-116,-123,-116,-104,-225,-217,-318,-315,-423,-499,-513,-523,-506,-520,-505,-530,-489,-518,-493,-504,-577,-518,-522,-511,-643,-645,-7903,-7774,-6403,-6291,-5510,-1853,-29974,-29974,-29974,-29973,-29973,-29972,-29972,-29973,-29973,-29974,-29978,-29974,-29978,-29976,-29978,-29975,-29980,-29980,-29983,-29984,-29985,-29986,-29986,-29984,-29984,-29967]} 1. e4 {[%emt 0:00:10]} c6 {[%emt 0:01:13]} 2. Nf3 {[%emt 0:00:06]} d5 {[%emt 0:00:16]} 3. Nc3 {[%emt 0:00:05]} dxe4 {[%emt 0:01:42]} 4. Nxe4 {[%emt 0:00:04]} Nf6 {[%emt 0:00:06]} 5. Qe2 {[%emt 0:00:15]} Nxe4 {[%emt 0:01:57]} 6. Qxe4 {[%emt 0:00:03] RECAPT} Be6 {[%emt 0:00:04] CPLX 2.2 4 (Nb8-d7) (=4). B11: Caro-Kann: Two Knights Variation.} 7. Be2 {[%emt 0:15:12] CPLX 2.2 16 (b2-b3) (=8)} Nd7 {CPLX 2.2} 8. d4 {[%emt 0:01:45] CPLX 2.2 0 (0-0) (=5)} Nf6 {[%emt 0:09:24] CPLX 2.3 20 (g7-g6) (=8). White has an edge.} 9. Qf4 {[%emt 0:01:36] CPLX 2.5 21 (Qe4-e5) (=9)} g6 {[%emt 0:05:33] CPLX 2.3 11 (Qd8-d6) (=9)} 10. O-O {CPLX 2.4 12 (c2-c4) (=10)} Bg7 {[%emt 0:01:27] [#] CPLX 2.2 6 (Qd8-d6) (=8)} 11. c3 $146 {[%emt 0:14:48] CPLX 2.2 0 (Rf1-e1) (=8)} ({Predecessor:} 11. Rd1 O-O 12. c4 Bg4 13. Be3 Qb8 14. h3 Qxf4 15. Bxf4 Bf5 16. g4 Be6 17. b3 {0-1 (54) Pourramezanali,A (2504)-Mitrabha,G (2467) Tornelo INT 2021}) 11... h6 {[%emt 0:14:51] CPLX 2.2 21 (Nf6-d5) (=10)} 12. Ne5 {[%emt 0:06:35] CPLX 2.4 34 (Rf1-e1) (=12)} Nd7 {[%emt 0:03:06] CPLX 2.6 8 (Qd8-d6) (=10)} 13. Re1 {[%emt 0:13:58] CPLX 3.0 18 (Ne5xd7) (=13)} Nxe5 {[%emt 0:05:53] CPLX 3.0} 14. dxe5 {[%emt 0:00:09] RECAPT} Qc7 {[%emt 0:03:03] CPLX 2.3 17 (Qd8-a5) (=10)} 15. Bf3 {[%emt 0:02:28] CPLX 2.3 25 (Be2-f1) (=13)} Rd8 {[%emt 0:01:59] CPLX 2.3 0 (a7-a5) (=9)} 16. h4 {[%emt 0:02:44] CPLX 2.3 0 (Qf4-e3) (=11)} O-O {[%emt 0:03:39][%cal Bh8f8,Bf8d8,Bd8d3,Bd3c3][%mdl 32] CPLX 2.3 0 (a7-a5) (=8)} 17. Qg3 {[%emt 0:05:45] CPLX 2.3 18 (a2-a4) (=12)} Rd3 {CPLX 2.2} 18. Qh2 {[%emt 0:13:22] BESTDEEP} Rfd8 {[%emt 0:08:51] CPLX 2.3} 19. Bf4 {[%emt 0:01:35] CPLX 2.3 0 (a2-a4) (=10)} Qb6 {[%emt 0:04:39] CPLX 2.3} 20. Be4 {[%emt 0:02:45] RELBLUND 110 (Bf4-c1) (=17)} (20. Bc1 $1 $11 {keeps the balance.}) 20... Qxb2 $17 {[%emt 0:02:00] DEEPSTRONG=>BLUNDERREACT} 21. Bxd3 {[%emt 0:03:48] EASY} Rxd3 {[%emt 0:00:05] RECAPT} 22. Be3 {[%emt 0:08:19] CPLX 3.6 7 (Ra1-c1) (=15)} Qxc3 {[%emt 0:03:07] Black has more active pieces. CPLX 3.4} 23. Rac1 {[%emt 0:02:06] BESTDEEP} Qa5 {[%emt 0:04:56] CPLX 3.7 12 (Qc3-a3) (=6)} (23... Bxe5 24. Bf4 Bxf4 25. Qxf4 $15) 24. Bc5 {[%emt 0:02:52] [#] This move loses the game for White. CPLX 3.3 121 (Qh2-f4) (=20)} (24. Qf4 $17) 24... Rc3 $1 $40 {[%emt 0:02:52][%mdl 128] Black has strong attack. CPLX 3.3=>BLUNDERREACT} ({Not} 24... Qxa2 25. Qf4 $17) 25. Bd4 {[%emt 0:01:39] MISSDEEP-Bc5-e3 101 (Bc5-e3) (=24)} (25. Be3 $142 Bxe5 26. Bf4 Rxc1 27. Rxc1) 25... Rc4 {[%emt 0:02:02] CPLX 3.4} 26. Red1 {[%emt 0:00:44] [#] CPLX 3.5 108 (Bd4-e3) (=28)} Rxd4 {[%emt 0:05:13][%mdl 512] BESTDEEP=>BLUNDERREACT} 27. Rxd4 {[%emt 0:00:08] RECAPT} Bxe5 {[%emt 0:00:05] EASY} 28. Rd8+ {[%emt 0:00:55] CPLX 4.6} Kg7 {[%emt 0:00:31] CPLX 4.7} ({Stronger than} 28... Qxd8 29. Qxe5 a6 30. Qf4 $17) 29. f4 {[%emt 0:00:27] EASY} Qxd8 {[%emt 0:01:02] CPLX 6.0} 30. fxe5 {[%emt 0:00:02][%mdl 4096] Endgame KQR-KQB. EASY} Qd4+ {[%emt 0:00:12] BESTDEEP} 31. Kh1 {[%emt 0:00:34] EASY} Bxa2 {[%emt 0:00:18] And now ...b5 would win. CPLX 3.0} 32. Qg3 {[%emt 0:00:54] CPLX 3.0 73 (h4-h5) (=25)} Bd5 {[%emt 0:00:55] CPLX 3.4 59 (b7-b5) (=6)} 33. h5 {[%emt 0:00:33] CPLX 3.5 4 (e5-e6) (=24)} g5 {[%emt 0:01:33] CPLX 3.8} 34. Rb1 {[%emt 0:00:29] CPLX 3.5 132 (Qg3-c3) (=28)} b5 {[%emt 0:00:39] CPLX 3.6} 35. Qa3 {[%emt 0:00:32] [#] RELBLUND 400 (e5-e6) (=40)} Bxg2+ $1 {[%emt 0:02:02][%mdl 512] CPLX 4.4=>BLUNDERREACT} 36. Kxg2 {[%emt 0:00:22] RECAPT} (36. Kh2 Bd5) 36... Qe4+ {[%emt 0:00:01] EASY} 37. Kh2 {[%emt 0:00:28] CPLX 4.2 0 (Kg2-f2) (=38)} Qxb1 {[%emt 0:00:32] CPLX 4.6 400 (Qe4-c2) (=17)} (37... Qc2+ $142 38. Kg3 Qxb1 39. Qxe7 Qf5) 38. Qxe7 {[%emt 0:00:09] KQ-KQ. RELBLUND 400 (e5-e6) (=48)} Qf5 {[%emt 0:00:35] CPLX 3.5. Black mates.} 39. Kg2 {[%emt 0:01:02] RELBLUND 0 (Qe7-c5) (=47)} a5 {[%emt 0:00:30] CPLX 2.8} 40. Qc5 {[%emt 0:00:28] RELBLUND} Qg4+ {[%emt 0:02:03]} 41. Kf2 {[%emt 0:00:00]} Qh4+ {[%emt 0:00:00]} 42. Kg1 {[%emt 0:00:00]} Qxh5 {[%emt 0:00:00]} 43. Qd4 {[%emt 0:00:00]} Qh4 {[%emt 0:00:00]} 44. Qa1 {[%emt 0:00:00]} Qg4+ {[%emt 0:00:00]} 45. Kh1 {[%emt 0:00:00]} Qe6 {[%emt 0:00:00]} 46. Qxa5 {[%emt 0:00:00]} Qxe5 {[%emt 0:00:00]} 47. Qb6 {[%emt 0:00:00]} Qc3 {[%emt 0:00:00]} 48. Qb8 {[%emt 0:00:00]} b4 {[%emt 0:00:00][%cal Bb5b4,Bb4b3][%mdl 32]} 49. Qg3 {[%emt 0:00:00]} Qd4 {[%emt 0:00:00]} 50. Kg2 {[%emt 0:00:00]} b3 {[%emt 0:00:00] Weighted Error Value: White=0.66/Black=0.21 (precise)} 0-1

[Event "Chhattisgarh Masters GM 2022"]
[Site "Chhattisgarh"]
[Date "2022.09.19"]
[Round "1.6"]
[White "Vrashank Chouhan"]
[Black "Panesar Vedant"]
[Result "0-1"]
[ECO "D43"]
[WhiteElo "2056"]
[BlackElo "2336"]
[Annotator "TA"]
[PlyCount "52"]
[EventDate "2022.09.19"]
[EventCountry "IND"]
[SourceTitle "playchess.com"]
[Source "ChessBase"]
[SourceQuality "1"]
[TimeControl "5400+30"]

{[%evp 16,52,0,-47,-43,-60,-48,-69,-25,-44,-39,-237,-238,-479,-431,-495,-442,-505,-489,-485,-506,-656,-628,-730,-722,-716,-714,-643,-561,-560,-425,-702,-708,-1091,-1110,-1713,-1660,-1647,-1628]} 1. d4 {[%emt 0:00:02]} c6 {[%emt 0:00:23]} 2. c4 {[%emt 0:02:33]} d5 {[%emt 0:00:08]} 3. Nc3 {[%emt 0:00:06]} Nf6 {[%emt 0:00:06]} 4. Nf3 {[%emt 0:00:08]} e6 {[%emt 0:00:41]} 5. Bg5 {[%emt 0:00:46][%cal Bc1g5,Bg5h4,Bh4g3][%mdl 32]} h6 {[%emt 0:00:50][%cal Bh7h6,Bh6h5,Bh5g4][%mdl 32]} 6. Bh4 {[%emt 0:00:37]} dxc4 {[%emt 0:00:08]} 7. e4 {[%emt 0:00:23]} g5 {[%emt 0:00:32]} 8. Bg3 {[%emt 0:00:05]} b5 {[%emt 0:00:05]} 9. h4 {[%emt 0:01:01] CPLX 2.8 47 (Nf3-e5) (=47)} (9. Ne5 $11) 9... g4 $15 {[%emt 0:06:49] DEEPSTRONG. D43: Semi-Slav: 5 Bg5 h6.} 10. Ne5 {[%emt 0:00:33] EASY} h5 {[%emt 0:16:17] BESTDEEP} 11. f3 {[%emt 0:05:44] CPLX 3.0 21 (Bg3-f4) (=23)} Bb7 {[%emt 0:01:49] CPLX 3.1 44 (Rh8-g8) (=15). Black is slightly better.} 12. fxg4 {[%emt 0:19:30] CPLX 3.1 19 (Bf1-e2) (=22)} hxg4 {[%emt 0:02:55] [#] RECAPT} 13. Bxc4 $146 {[%emt 0:16:46] RELBLUND 198 (Ne5xg4) (=57)} ({Predecessor:} 13. Nxg4 Nbd7 14. Nxf6+ Qxf6 15. Be2 Rg8 16. Rf1 Qh6 17. Rf3 Rxg3 18. Rxg3 Qxh4 19. Kf2 Bd6 20. e5 Nxe5 21. dxe5 Bxe5 22. Ne4 c5 23. Qh1 Bd4+ {0-1 (23) Kutsykh,M (2323)-Pavlov,M (2378) Odessa 2011}) 13... bxc4 $19 {[%emt 0:01:07] RECAPT} 14. Nxf7 $2 {[%emt 0:00:07] CPLX 3.4 241 (Qd1-e2) (=88)} (14. Qe2) 14... Kxf7 {[%emt 0:01:30] RECAPT. Black is clearly winning.} 15. O-O {[%emt 0:00:05] [#] Black must now prevent e5. CPLX 4.4 64 (e4-e5) (=84)} Ke8 {[%emt 0:10:47][%cal Bf7e8,Be8d7,Bd7c8][%mdl 32] BESTDEEP} 16. e5 {[%emt 0:00:21] EASY} Nh5 {[%emt 0:02:09] CPLX 4.8} 17. Qxg4 {[%emt 0:12:54] EASY} Nxg3 {[%emt 0:02:22] BESTDEEP} 18. Qg6+ {[%emt 0:09:11] MISS-Qg4xe6 150 (Qg4xe6) (=74)} Kd7 {[%emt 0:00:22] EASY} 19. Rf7+ {[%emt 0:04:42] CPLX 7.1 102 (Qg6xg3) (=77)} Kc8 {[%emt 0:13:25] EASY} 20. Qxe6+ {[%emt 0:08:36] CPLX 7.7} Nd7 {[%emt 0:00:24] EASY} 21. Qg4 {[%emt 0:01:01] CPLX 7.2} Nh5 {[%emt 0:11:47][%cal Oh5g7] ...Ng7! is the strong threat. CPLX 7.3 82 (Rh8xh4) (=10)} 22. Raf1 {[%emt 0:03:51] CPLX 6.5} Be7 {[%emt 0:03:31]} 23. Ne4 {[%emt 0:00:21]} (23. R1f5 $142 Rg8 24. Qxh5) 23... c5 {[%emt 0:04:50][%cal Oh8g8] [#] Threatens to win with ...Rg8!} 24. Ng5 {[%emt 0:10:54]} Bd5 {[%emt 0:03:39] Strongly threatening ...cxd4.} 25. Ne6 {[%emt 0:00:42]} Rg8 {[%emt 0:01:25]} 26. Rg7 {[%emt 0:01:28]} Bxe6 {[%emt 0:01:11] Black took control after the opening.  Weighted Error Value: White=0.61/Black=0.23 (precise)} 0-1